[Event "AZE-ch Men 2019"]
[Site "Baku"]
[Date "2019.01.23"]
[Round "8"]
[White "Zeynalov, Farid"]
[Black "Muradli, Mahammad"]
[Result "0-1"]
[ECO "B09"]
[WhiteElo "2344"]
[BlackElo "2432"]
[Annotator "NA"]
[PlyCount "160"]
[EventDate "2019.01.16"]
[EventType "swiss"]
[EventCountry "AZE"]
[SourceTitle "playchess.com"]
[Source "ChessBase"]
[SourceQuality "1"]
[TimeControl "40/5400+30:1800+30"]

1. d4 d6 {[%emt 0:11:24]} 2. e4 {[%emt 0:00:00]} Nf6 {[%emt 0:02:31]} 3. Nc3 {[%emt 0:00:00]} g6 {[%emt 0:00:02]} 4. f4 {[%emt 0:00:26]} Bg7 {[%emt 0:00:19]} 5. Nf3 {[%emt 0:00:06]} O-O {[%emt 0:00:29]} 6. Bd3 {[%emt 0:00:20]} Na6 {[%emt 0:00:08]} 7. O-O {[%emt 0:03:04]} c5 {[%emt 0:00:07]} 8. d5 $1 {[%emt 0:00:41]} Bg4 {[%emt 0:00:35]} 9. h3 {[%emt 0:05:10]} Bxf3 {[%emt 0:02:19]} 10. Rxf3 {[%emt 0:00:10]} Nc7 {[%emt 0:03:01] LiveBook: 47 Games B09: Pirc Defence: Austrian Attack} 11. a4 {[%emt 0:01:17]} a6 {[%emt 0:05:43]} 12. a5 {[%emt 0:04:32]} Re8 $146 {[%emt 0:15:35]} ({Predecessor:} 12... Nb5 13. Ne2 e6 14. dxe6 fxe6 15. f5 gxf5 16. exf5 e5 17. c4 {½-½ (41) Swiercz,D (2636)-Mamedov,R (2678) Atlantic City 2016}) 13. f5 {[%emt 0:06:53]} Nd7 {[%emt 0:03:14]} 14. Bg5 {[%emt 0:09:15]} (14. Rf1 $16) 14... c4 {[%emt 0:07:36]} 15. Bf1 {[%emt 0:08:54]} Nb5 $1 {[%emt 0:00:47]} 16. Kh1 {[%emt 0:05:24]} ({Much worse is} 16. Bxc4 Nxc3 17. Rxc3 Bxc3 $17) 16... Qc7 {[%emt 0:03:45]} 17. Qd2 {[%emt 0:05:41]} (17. Be3 $14) 17... Be5 {[%emt 0:04:08]} ({Black should play} 17... Nxc3 $11 18. bxc3 Ne5) 18. Nd1 {[%emt 0:11:17]} f6 {[%emt 0:07:01]} (18... c3 $11 19. Nxc3 Nxc3 20. bxc3 Rac8) 19. fxg6 $2 {[%emt 0:09:15]} (19. Bh4 $16) 19... hxg6 {[%emt 0:05:11]} (19... fxg5 $15 {keeps the upper hand.} 20. Qxg5 Nd4) 20. Bh4 {[%emt 0:02:06]} Kg7 {[%emt 0:03:01]} 21. Bf2 {[%emt 0:07:00]} c3 {[%emt 0:05:27]} 22. Nxc3 {[%emt 0:04:41]} Nxc3 {[%emt 0:00:12]} 23. bxc3 Rec8 {[%emt 0:00:07]} 24. Be1 {[%emt 0:02:35]} ({White should play} 24. Bd4 $14) 24... Nc5 {[%emt 0:00:48]} 25. Qe3 {[%emt 0:00:09]} b6 {[%emt 0:01:33]} 26. h4 {[%emt 0:07:15]} bxa5 {[%emt 0:01:20]} 27. g4 {[%emt 0:00:55]} Qb6 {[%emt 0:02:10]} 28. g5 {[%emt 0:02:56]} Rh8 {[%emt 0:02:55]} 29. gxf6+ {[%emt 0:03:33]} exf6 {[%emt 0:00:24]} 30. Bd3 {[%emt 0:00:32]} a4 {[%emt 0:00:44]} 31. Qc1 {[%emt 0:00:37]} Rab8 {[%emt 0:01:20]} 32. Kg2 {[%emt 0:00:40]} Qc7 {[%emt 0:01:37]} 33. Ra3 {[%emt 0:00:28]} Qd7 {[%emt 0:00:11]} 34. Qe3 {[%emt 0:00:30]} Rb1 {[%emt 0:01:00]} 35. Rh3 {[%emt 0:00:31]} Qg4+ {[%emt 0:03:19]} 36. Bg3 {[%emt 0:00:28]} Nxd3 {[%emt 0:01:43]} 37. Qxd3 {[%emt 0:00:21]} Bf4 {[%emt 0:00:08]} 38. c4 {[%emt 0:00:36]} Rd1 {[%emt 0:00:16]} 39. Qf3 {[%emt 0:00:12]} Rd2+ {[%emt 0:00:04]} 40. Kg1 {[%emt 0:00:00]} Qxh3 {[%emt 0:00:00]} 41. Bxf4 {[%emt 0:00:05]} Qxf3 {[%emt 0:01:23]} 42. Rxf3 {[%emt 0:00:03]} Rxc2 {[%emt 0:00:01]} 43. Bxd6 {[%emt 0:00:13]} Rxh4 {[%emt 0:00:09]} 44. e5 {[%emt 0:02:45]} Rhxc4 {[%emt 0:02:23]} 45. Rxf6 {[%emt 0:00:55]} Rd4 {[%emt 0:00:39]} 46. Rf1 {[%emt 0:04:25]} Rg4+ $2 {[%emt 0:01:07]} (46... Rxd5 47. Re1 Rdd2) 47. Kh1 {[%emt 0:00:08]} Rc8 {[%emt 0:00:03]} 48. e6 {[%emt 0:00:33]} Rh8+ {[%emt 0:00:06]} 49. Bh2 {[%emt 0:00:03]} Rgh4 {[%emt 0:01:24]} 50. Rf7+ {[%emt 0:00:39]} Kg8 {[%emt 0:00:01]} 51. d6 {[%emt 0:00:28]} Rxh2+ {[%emt 0:00:04]} 52. Kg1 {[%emt 0:00:01]} Rh1+ {[%emt 0:00:06]} 53. Kg2 {[%emt 0:00:07]} R8h2+ {[%emt 0:00:04]} 54. Kg3 {[%emt 0:00:09]} Rd2 {[%emt 0:01:41]} (54... Rh3+ $142 55. Kg4 Rd3) 55. d7 {[%emt 0:06:28]} Re1 {[%emt 0:00:05]} 56. e7 {[%emt 0:00:52]} Rxd7 {[%emt 0:00:05]} 57. e8=Q+ {[%emt 0:00:09]} Rxe8 {[%emt 0:00:01]} 58. Rxd7 {[%emt 0:00:08]} a5 {[%emt 0:01:30]} 59. Kf4 $19 {[%emt 0:00:54]} Ra8 {[%emt 0:00:57]} 60. Kg5 {[%emt 0:02:10]} Ra6 {[%emt 0:00:04]} 61. Rd4 {[%emt 0:00:07]} a3 {[%emt 0:00:07]} 62. Ra4 {[%emt 0:00:03]} Kg7 {[%emt 0:00:11]} 63. Rxa3 {[%emt 0:00:03]} a4 {[%emt 0:00:05]} 64. Kf4 {[%emt 0:00:11]} Kf6 {[%emt 0:00:04]} 65. Ke4 {[%emt 0:00:03]} g5 {[%emt 0:00:10]} 66. Rf3+ {[%emt 0:00:06]} Kg6 {[%emt 0:00:03]} 67. Ra3 {[%emt 0:00:03]} Ra5 {[%emt 0:00:10]} 68. Kd4 {[%emt 0:00:32]} g4 {[%emt 0:00:04]} 69. Ke3 {[%emt 0:00:31]} Kf5 {[%emt 0:00:10]} 70. Kf2 {[%emt 0:00:09]} Ke4 {[%emt 0:00:16]} 71. Kg3 {[%emt 0:00:04]} Kd4 {[%emt 0:00:03]} 72. Kxg4 {[%emt 0:00:05]} Kc4 {[%emt 0:00:02]} 73. Kf3 {[%emt 0:00:05]} Kb4 {[%emt 0:00:03]} 74. Re3 {[%emt 0:00:12]} a3 {[%emt 0:00:23]} 75. Re4+ {[%emt 0:00:03]} Kc3 {[%emt 0:00:03]} 76. Re3+ {[%emt 0:00:07]} Kd2 {[%emt 0:00:06]} 77. Re2+ {[%emt 0:00:02]} Kd1 {[%emt 0:00:03]} 78. Ra2 {[%emt 0:00:03]} Kc1 {[%emt 0:00:07]} 79. Ke3 {[%emt 0:01:36]} Kb1 {[%emt 0:00:01]} 80. Rd2 {[%emt 0:01:16]} a2 {[%emt 0:00:02]} 0-1

[Event "AZE-ch Men 2019"]
[Site "Baku"]
[Date "2019.01.23"]
[Round "8"]
[White "Guliev, Sarhan"]
[Black "Isgandarov, Shahriyar"]
[Result "1-0"]
[ECO "A55"]
[WhiteElo "2342"]
[BlackElo "2113"]
[Annotator "NA"]
[PlyCount "92"]
[EventDate "2019.01.16"]
[EventType "swiss"]
[EventCountry "AZE"]
[SourceTitle "playchess.com"]
[Source "ChessBase"]
[SourceQuality "1"]
[TimeControl "40/5400+30:1800+30"]

1. d4 {[%emt 0:10:27]} d6 {[%emt 0:00:00]} 2. Nf3 {[%emt 0:02:09]} Nd7 {[%emt 0:00:03]} 3. c4 {[%emt 0:00:21]} e5 {[%emt 0:00:07]} 4. Nc3 {[%emt 0:00:07]} Ngf6 {[%emt 0:00:40]} 5. e4 {[%emt 0:00:50]} Be7 {[%emt 0:01:07] LiveBook: 1474 Games} 6. Be2 {[%emt 0:00:13]} O-O {[%emt 0:00:36]} 7. O-O {[%emt 0:00:07]} b6 {[%emt 0:03:49] A55: Old Indian Defence with Nf3 and e4} (7... c6 8. Re1 Qe8 9. Bf1 Bd8 10. h3 Qe7 11. Be3 Ba5 12. Nd2 Rd8 13. Qc2 Nf8 14. d5 h6 15. a3 Bb6 16. b4 Bxe3 17. Rxe3 {0-1 (65) Jakovenko,D (2726)-Jobava,B (2706) Loo 2014}) 8. Re1 {[%emt 0:07:39]} Bb7 {[%emt 0:02:45]} 9. Bf1 {[%emt 0:01:23]} Re8 {[%emt 0:00:35]} 10. b3 $146 {[%emt 0:02:12]} ({Predecessor:} 10. Qc2 a6 11. d5 c6 12. Bd2 Rc8 13. b4 b5 14. dxc6 Bxc6 15. Qb3 {1-0 (41) Thybo,J (2442)-Fries Nielsen,J (2354) Kolding 2017}) 10... Bf8 {[%emt 0:01:51]} 11. d5 {[%emt 0:09:01]} g6 {[%emt 0:01:23]} 12. Bg5 {[%emt 0:05:18]} h6 {[%emt 0:00:54]} 13. Bd2 {[%emt 0:00:08]} Bg7 {[%emt 0:00:51]} 14. g3 {[%emt 0:00:52]} Nf8 {[%emt 0:01:23]} 15. Nh4 {[%emt 0:02:36]} Bc8 {[%emt 0:01:01]} 16. f3 {[%emt 0:11:56]} Bd7 {[%emt 0:01:25]} 17. b4 {[%emt 0:00:32]} N6h7 {[%emt 0:06:35]} 18. Qc2 {[%emt 0:02:03]} Bf6 {[%emt 0:06:44]} 19. Ng2 {[%emt 0:02:50]} Ng5 {[%emt 0:01:02]} 20. Bxg5 {[%emt 0:01:05]} Bxg5 {[%emt 0:02:25]} 21. c5 {[%emt 0:00:37]} dxc5 {[%emt 0:03:01]} 22. bxc5 {[%emt 0:00:10]} Be7 {[%emt 0:00:35]} 23. c6 {[%emt 0:02:15]} Bh3 {[%emt 0:01:17]} 24. Ne3 {[%emt 0:01:36]} Bxf1 {[%emt 0:00:47]} 25. Kxf1 {[%emt 0:02:56]} ({Of course not} 25. Nxf1 Nh7 $11) 25... Bc5 {[%emt 0:01:20]} 26. Kg2 {[%emt 0:02:10]} Nh7 {[%emt 0:02:34]} 27. Nc4 {[%emt 0:03:00]} a6 {[%emt 0:01:12]} 28. Rad1 {[%emt 0:03:53]} Nf6 {[%emt 0:06:26]} 29. Na4 {[%emt 0:04:39]} Bb4 {[%emt 0:02:39]} 30. Nd2 {[%emt 0:03:03]} h5 {[%emt 0:01:41]} 31. Nb2 $14 {[%emt 0:03:27]} b5 {[%emt 0:08:42]} 32. Nd3 {[%emt 0:00:16]} Bf8 {[%emt 0:01:45]} 33. h4 {[%emt 0:02:32]} Qd6 {[%emt 0:03:10]} 34. Nb3 {[%emt 0:02:04]} Qa3 {[%emt 0:05:21]} 35. Nbc5 {[%emt 0:03:35]} Bd6 {[%emt 0:05:48]} 36. Rb1 {[%emt 0:02:49]} Qa5 {[%emt 0:01:34]} 37. Nb7 {[%emt 0:02:44]} Qb6 {[%emt 0:00:25]} 38. a4 {[%emt 0:01:43]} Qd4 {[%emt 0:05:12]} 39. Ndc5 {[%emt 0:01:50]} bxa4 {[%emt 0:05:27]} 40. Red1 {[%emt 0:00:00]} Qe3 {[%emt 0:00:00]} 41. Nxd6 {[%emt 0:02:47]} cxd6 {[%emt 0:00:33]} 42. Nb7 {[%emt 0:00:06]} Rf8 {[%emt 0:04:17]} 43. Rd3 {[%emt 0:01:24]} Qa7 {[%emt 0:01:46]} 44. Nxd6 {[%emt 0:01:02]} Qc7 {[%emt 0:00:38]} 45. Nb7 {[%emt 0:01:10]} Rac8 {[%emt 0:00:29]} 46. Qxa4 {[%emt 0:00:21]} Ne8 {[%emt 0:01:25]} 1-0

[Event "AZE-ch Men 2019"]
[Site "Baku"]
[Date "2019.01.23"]
[Round "8"]
[White "Bashirli, Nail"]
[Black "Ahadzade, Kanan"]
[Result "1-0"]
[ECO "B06"]
[WhiteElo "2324"]
[BlackElo "2019"]
[Annotator "NA"]
[PlyCount "145"]
[EventDate "2019.01.16"]
[EventType "swiss"]
[EventCountry "AZE"]
[SourceTitle "playchess.com"]
[Source "ChessBase"]
[SourceQuality "1"]
[TimeControl "40/5400+30:1800+30"]

1. e4 {[%emt 0:07:49]} g6 {[%emt 0:00:00]} 2. d4 {[%emt 0:00:28]} Bg7 {[%emt 0:00:00]} 3. Nc3 {[%emt 0:00:03]} c6 {[%emt 0:00:00]} 4. Nf3 {[%emt 0:00:11]} d6 {[%emt 0:00:00]} 5. Be2 {[%emt 0:00:17]} Nf6 {[%emt 0:00:08]} 6. O-O {[%emt 0:00:21]} O-O {[%emt 0:00:09]} 7. Re1 {[%emt 0:00:03]} Nbd7 {[%emt 0:00:58]} 8. a4 {[%emt 0:03:52]} Qc7 {[%emt 0:03:15]} 9. h3 {[%emt 0:00:16]} e5 {[%emt 0:00:29]} 10. a5 {[%emt 0:06:08] B08: Pirc Defence: Classical System} (10. dxe5 dxe5 11. Be3 Nh5 12. Bc4 Nf4 13. Qc1 h6 14. a5 Re8 15. Bb3 Qd6 16. Ne2 g5 17. Ng3 Nc5 {0-1 (34) Li,C (2724)-Sjugirov,S (2663) Qinhuangdao 2018}) 10... h6 {[%emt 0:04:22]} 11. dxe5 $146 {[%emt 0:03:12]} ({Predecessor:} 11. Bf1 Kh7 12. Be3 Ne8 13. a6 bxa6 14. d5 c5 15. Bxa6 Bxa6 16. Rxa6 Qb7 17. Qa1 f5 {1-0 (83) Schuetze,N (2269)-Konstacky,M (2117) Litomysl 2009}) 11... dxe5 {[%emt 0:01:08]} 12. Be3 {[%emt 0:00:01]} Rd8 {[%emt 0:01:28]} 13. Qc1 {[%emt 0:00:27]} Kh7 {[%emt 0:07:07]} 14. Rd1 {[%emt 0:03:06]} Ng8 {[%emt 0:05:32]} 15. Qd2 {[%emt 0:17:28]} Bf6 {[%emt 0:02:14]} 16. Qd6 {[%emt 0:01:55]} Qxd6 {[%emt 0:00:41]} 17. Rxd6 {[%emt 0:00:04]} Be7 {[%emt 0:03:20]} 18. Rd3 {[%emt 0:05:50]} Ngf6 {[%emt 0:02:44]} 19. Ra4 {[%emt 0:06:49]} Ne8 {[%emt 0:06:33]} 20. b4 {[%emt 0:07:00]} Nc7 {[%emt 0:06:16]} 21. Rd1 {[%emt 0:06:43]} f6 {[%emt 0:08:56]} 22. b5 {[%emt 0:10:48]} cxb5 {[%emt 0:04:54]} 23. Nxb5 {[%emt 0:00:59]} Nxb5 {[%emt 0:02:52]} 24. Bxb5 {[%emt 0:02:17]} a6 {[%emt 0:03:13]} 25. Bc4 {[%emt 0:00:45]} Nb8 {[%emt 0:04:12]} 26. Rb1 {[%emt 0:00:38]} Nc6 {[%emt 0:01:00]} 27. Bd5 {[%emt 0:00:15]} Bd6 {[%emt 0:01:04]} 28. Nd2 {[%emt 0:02:44]} Bc7 {[%emt 0:02:47]} 29. Nc4 {[%emt 0:01:02]} Rb8 {[%emt 0:01:43]} 30. Nb6 {[%emt 0:05:00]} Bd6 {[%emt 0:08:57]} 31. c3 {[%emt 0:01:20]} Bc7 {[%emt 0:08:28]} 32. Rc4 {[%emt 0:00:52]} Bxb6 {[%emt 0:00:53]} 33. Bxb6 {[%emt 0:01:06]} Rd7 {[%emt 0:01:27]} 34. f3 {[%emt 0:01:59]} Kg7 {[%emt 0:03:00]} 35. Kf2 {[%emt 0:00:49]} Ra8 {[%emt 0:01:18]} 36. Rxc6 {[%emt 0:02:31]} bxc6 {[%emt 0:02:23]} 37. Bxc6 {[%emt 0:00:02]} Rb8 {[%emt 0:00:28]} 38. Bxd7 {[%emt 0:00:24]} Bxd7 {[%emt 0:00:06]} 39. c4 {[%emt 0:00:17]} Rc8 {[%emt 0:04:11]} 40. Be3 {[%emt 0:00:00]} Kf7 {[%emt 0:00:00]} 41. Rb7 {[%emt 0:09:32]} Ke6 {[%emt 0:01:24]} 42. Rb6+ {[%emt 0:00:22]} Rc6 {[%emt 0:00:19]} 43. Bxh6 {[%emt 0:02:15]} Ke7 {[%emt 0:02:26]} 44. Rxc6 {[%emt 0:03:03]} (44. h4 $18) 44... Bxc6 {[%emt 0:00:04]} 45. h4 {[%emt 0:00:04]} Ba4 46. Ke2 {[%emt 0:00:51]} Ke6 $18 {[%emt 0:01:59]} 47. Bd2 {[%emt 0:00:57]} Bb3 {[%emt 0:01:01]} 48. Kd3 {[%emt 0:00:37]} Bd1 {[%emt 0:01:18]} 49. Bc1 {[%emt 0:04:39]} f5 {[%emt 0:01:13]} 50. exf5+ {[%emt 0:01:03]} Kxf5 {[%emt 0:00:58]} 51. Ke3 {[%emt 0:00:36]} Bb3 {[%emt 0:01:40]} 52. c5 {[%emt 0:00:39]} Bd5 {[%emt 0:00:29]} 53. Bb2 {[%emt 0:00:48]} Bc6 {[%emt 0:00:21]} 54. g4+ {[%emt 0:01:04]} Ke6 {[%emt 0:00:06]} 55. f4 {[%emt 0:00:56]} exf4+ {[%emt 0:02:34]} 56. Kxf4 {[%emt 0:00:04]} Kd5 {[%emt 0:00:10]} 57. h5 {[%emt 0:01:29]} gxh5 {[%emt 0:02:12]} 58. gxh5 {[%emt 0:00:05]} Be8 {[%emt 0:00:13]} 59. h6 {[%emt 0:00:23]} Bg6 {[%emt 0:00:06]} 60. Ba3 {[%emt 0:01:01]} Kc6 {[%emt 0:02:43]} 61. Kg5 {[%emt 0:00:27]} Bb1 {[%emt 0:00:06]} 62. Kf6 {[%emt 0:00:15]} Kb5 {[%emt 0:00:06]} 63. Bb4 {[%emt 0:00:23]} Be4 {[%emt 0:00:26]} 64. Kg7 {[%emt 0:00:18]} Kxb4 {[%emt 0:00:13]} 65. c6 {[%emt 0:00:06]} Bxc6 {[%emt 0:00:04]} 66. h7 {[%emt 0:00:03]} Kxa5 {[%emt 0:00:04]} 67. h8=Q {[%emt 0:00:04]} Bb5 {[%emt 0:00:17]} 68. Kf6 {[%emt 0:00:05]} Kb4 {[%emt 0:00:05]} 69. Qf8+ {[%emt 0:00:08]} Ka4 {[%emt 0:00:08]} 70. Ke5 {[%emt 0:00:12]} Ka5 {[%emt 0:00:06]} 71. Kd4 {[%emt 0:00:07]} Ka4 {[%emt 0:00:06]} 72. Kc3 {[%emt 0:00:12]} Ka5 {[%emt 0:00:07]} 73. Qc5 {[%emt 0:00:04]} 1-0

[Event "AZE-ch Men 2019"]
[Site "Baku"]
[Date "2019.01.23"]
[Round "8"]
[White "Ilyasli, Ughur"]
[Black "Novruzov, Emin"]
[Result "1-0"]
[ECO "A43"]
[WhiteElo "2148"]
[BlackElo "1910"]
[Annotator "NA"]
[PlyCount "55"]
[EventDate "2019.01.16"]
[EventType "swiss"]
[EventCountry "AZE"]
[SourceTitle "playchess.com"]
[Source "ChessBase"]
[SourceQuality "1"]
[TimeControl "40/5400+30:1800+30"]

1. d4 c5 2. d5 b5 3. e4 a6 {A43: Schmid Benoni} 4. a4 b4 5. c4 (5. Nd2 a5 6. e5 Ba6 7. Bxa6 Nxa6 8. Nc4 Nc7 9. Bg5 Qb8 10. Qf3 Ra6 11. O-O-O {1-0 (47) Laxman,R (2389)-Sai,V (2281) Noida 2016}) 5... bxc3 6. Nxc3 d6 7. Nf3 {[%emt 0:17:26]} g6 {[%emt 0:09:39]} 8. Nd2 {[%emt 0:01:14]} Bg7 {[%emt 0:01:55]} 9. Nc4 $146 {[%emt 0:00:49]} ({Predecessor:} 9. Be2 Nf6 10. O-O O-O 11. Nc4 {0-1 (45) Oborski,A (1801)-Kot,J (2028) Lazy 2018}) 9... a5 {[%emt 0:06:15]} 10. Bd3 {[%emt 0:03:02]} Na6 {[%emt 0:01:38]} 11. O-O {[%emt 0:00:37]} Nb4 {[%emt 0:00:11]} 12. f4 {[%emt 0:08:18]} Nxd3 {[%emt 0:06:39]} 13. Qxd3 {[%emt 0:00:04]} Nh6 {[%emt 0:03:09]} 14. f5 {[%emt 0:03:54]} Ng4 {[%emt 0:04:20]} 15. Qf3 {[%emt 0:06:58]} Bd4+ {[%emt 0:05:44]} 16. Kh1 {[%emt 0:02:58]} gxf5 {[%emt 0:08:36]} 17. exf5 {[%emt 0:00:25]} Rg8 {[%emt 0:01:58]} 18. Bf4 {[%emt 0:07:34]} Bxc3 {[%emt 0:17:34]} 19. Qxc3 {[%emt 0:05:19]} Ba6 {[%emt 0:04:20]} 20. Rae1 $14 {[%emt 0:14:30]} Kd7 {[%emt 0:09:00]} 21. f6 {[%emt 0:11:24]} exf6 {[%emt 0:01:14]} 22. h3 {[%emt 0:03:15]} Ne5 {[%emt 0:02:39]} 23. Bxe5 {[%emt 0:00:19]} dxe5 {[%emt 0:00:55]} 24. Nxe5+ {[%emt 0:02:12]} fxe5 {[%emt 0:03:21]} 25. Rxf7+ {[%emt 0:00:03]} Kc8 {[%emt 0:02:51]} 26. Qxc5+ {[%emt 0:00:08]} Kb8 {[%emt 0:00:03]} 27. Re3 {[%emt 0:00:07]} Bb7 {[%emt 0:04:05]} 28. Rxb7+ {[%emt 0:00:05]} 1-0

[Event "AZE-ch Men 2019"]
[Site "Baku"]
[Date "2019.01.23"]
[Round "8"]
[White "Jafarli, Babak"]
[Black "Abbasov, Amil"]
[Result "1/2-1/2"]
[ECO "B02"]
[WhiteElo "2128"]
[BlackElo "2190"]
[Annotator "NA"]
[PlyCount "68"]
[EventDate "2019.01.16"]
[EventType "swiss"]
[EventCountry "AZE"]
[SourceTitle "playchess.com"]
[Source "ChessBase"]
[SourceQuality "1"]
[TimeControl "40/5400+30:1800+30"]

1. e4 {[%emt 0:24:37]} Nf6 {[%emt 0:07:46]} 2. e5 {[%emt 0:00:46]} Nd5 {[%emt 0:00:05]} 3. c4 {[%emt 0:04:53]} Nb6 {[%emt 0:00:19]} 4. c5 {[%emt 0:00:06]} Nd5 {[%emt 0:00:04]} 5. Bc4 {[%emt 0:00:03]} e6 {[%emt 0:00:06]} 6. Nc3 {[%emt 0:00:03]} Nxc3 {[%emt 0:00:31]} 7. bxc3 {[%emt 0:00:19]} d6 {[%emt 0:01:14] B02: Alekhine's Defence: Chase Variation and lines with early Nc3} (7... Bxc5 8. Qg4 O-O 9. d4 f5 10. Qg3 Be7 11. Nf3 Qe8 12. h4 d6 13. Bh6 Qg6 14. Qxg6 hxg6 15. Bg5 {½-½ (82) Jafarli,B (2132)-Sevdimaliyev,U (2386) Baku 2018}) 8. cxd6 {[%emt 0:00:27]} cxd6 {[%emt 0:00:04]} 9. Nf3 {[%emt 0:00:16]} Nc6 {[%emt 0:02:29]} 10. Qe2 {[%emt 0:03:48]} Qa5 {[%emt 0:08:30]} 11. exd6 $146 {[%emt 0:01:27]} ({Predecessor:} 11. O-O dxe5 12. d4 exd4 13. cxd4 Be7 14. d5 exd5 15. Bb5 {1-0 (31) Muench,K (2085)-Oberhofer,M (2105) Bayern 1999}) 11... Bxd6 {[%emt 0:00:10]} 12. O-O {[%emt 0:00:02]} O-O {[%emt 0:00:11]} 13. d4 {[%emt 0:01:08]} Qxc3 {[%emt 0:03:50]} 14. Bd2 {[%emt 0:05:38]} Qa3 {[%emt 0:00:23]} 15. Bd3 {[%emt 0:00:39]} Be7 {[%emt 0:01:40]} 16. Qe4 {[%emt 0:11:44]} g6 {[%emt 0:09:57]} 17. h4 {[%emt 0:03:51]} Qd6 {[%emt 0:02:18]} 18. Bc4 {[%emt 0:01:10]} Bf6 {[%emt 0:02:23]} 19. Bf4 {[%emt 0:01:30]} Qb4 {[%emt 0:03:36]} 20. Rac1 {[%emt 0:01:48]} Qa5 {[%emt 0:03:05]} 21. Ne5 {[%emt 0:02:36]} Rd8 {[%emt 0:12:26]} 22. Rfd1 {[%emt 0:04:00]} Nxe5 {[%emt 0:06:01]} 23. Bxe5 {[%emt 0:00:10]} Bxe5 $11 {[%emt 0:04:12]} 24. dxe5 {[%emt 0:00:15]} Bd7 {[%emt 0:00:28]} 25. Qxb7 {[%emt 0:06:49]} Ba4 {[%emt 0:06:42]} 26. Re1 {[%emt 0:02:22]} Rac8 {[%emt 0:01:36]} 27. Qe4 {[%emt 0:00:57]} Qd2 {[%emt 0:00:56]} 28. Qe2 {[%emt 0:02:35]} Qh6 {[%emt 0:02:23]} 29. Qg4 {[%emt 0:03:34]} Bb5 {[%emt 0:12:21]} 30. Rc2 {[%emt 0:01:05]} Rd2 {[%emt 0:03:35]} 31. Re2 {[%emt 0:00:59]} Rxc2 {[%emt 0:00:32]} 32. Rxc2 {[%emt 0:00:04]} Bxc4 {[%emt 0:02:03]} 33. Rxc4 {[%emt 0:00:06]} Rxc4 {[%emt 0:00:06]} 34. Qxc4 {[%emt 0:00:06]} Qd2 {[%emt 0:00:07]} 1/2-1/2

[Event "AZE-ch Men 2019"]
[Site "Baku"]
[Date "2019.01.23"]
[Round "8"]
[White "Guliyev, Gasan"]
[Black "Allahverdiyeva, Ayan"]
[Result "0-1"]
[ECO "D34"]
[WhiteElo "1997"]
[BlackElo "1975"]
[Annotator "NA"]
[PlyCount "88"]
[EventDate "2019.01.16"]
[EventType "swiss"]
[EventCountry "AZE"]
[SourceTitle "playchess.com"]
[Source "ChessBase"]
[SourceQuality "1"]
[TimeControl "40/5400+30:1800+30"]

1. d4 {[%emt 0:08:28]} d5 {[%emt 0:00:00]} 2. c4 {[%emt 0:00:08]} e6 {[%emt 0:02:11]} 3. Nf3 {[%emt 0:00:36]} c5 {[%emt 0:00:41]} 4. cxd5 {[%emt 0:00:33]} exd5 {[%emt 0:00:15]} 5. g3 {[%emt 0:00:05]} Nf6 {[%emt 0:00:39]} 6. Bg2 {[%emt 0:00:04]} Be7 {[%emt 0:00:04]} 7. O-O {[%emt 0:00:07]} O-O {[%emt 0:00:29]} 8. Nc3 {[%emt 0:00:06]} Nc6 {[%emt 0:00:52]} 9. h3 {[%emt 0:00:36]} h6 {[%emt 0:07:05]} 10. Be3 {[%emt 0:13:30]} c4 {[%emt 0:08:59]} 11. Ne5 {[%emt 0:00:46]} Re8 {[%emt 0:09:27]} 12. Qa4 {[%emt 0:24:24]} Be6 {[%emt 0:30:09]} 13. f4 $11 {[%emt 0:12:22]} Qc8 {[%emt 0:10:40]} 14. g4 {[%emt 0:01:32]} Bd8 {[%emt 0:00:38]} 15. g5 {[%emt 0:15:31]} hxg5 {[%emt 0:05:24]} 16. fxg5 {[%emt 0:00:29]} Ne4 {[%emt 0:00:10]} 17. Nxe4 {[%emt 0:08:59]} dxe4 {[%emt 0:00:07]} 18. Bxe4 {[%emt 0:07:55]} Bxh3 {[%emt 0:00:49]} 19. Bxc6 {[%emt 0:00:50]} Rxe5 {[%emt 0:06:46]} 20. dxe5 {[%emt 0:00:10]} Qg4+ {[%emt 0:00:06]} 21. Kh2 {[%emt 0:00:19]} Bxf1 {[%emt 0:02:24]} 22. Rxf1 {[%emt 0:01:17]} bxc6 {[%emt 0:00:09]} 23. Qxc6 {[%emt 0:01:00]} Qxe2+ {[%emt 0:01:19]} 24. Qg2 {[%emt 0:00:04]} Qh5+ {[%emt 0:12:00]} 25. Qh3 {[%emt 0:00:03]} Qg6 {[%emt 0:02:28]} 26. Qg4 {[%emt 0:02:20]} Bc7 {[%emt 0:02:05]} 27. Qxc4 {[%emt 0:00:32]} Bxe5+ {[%emt 0:00:22]} 28. Kg2 {[%emt 0:00:17]} Bxb2 {[%emt 0:01:38]} 29. Rh1 {[%emt 0:00:28]} Re8 {[%emt 0:01:07]} 30. Qh4 {[%emt 0:00:39]} Qc6+ {[%emt 0:00:57]} 31. Kf2 {[%emt 0:00:17]} Qc2+ {[%emt 0:01:03]} 32. Kf3 {[%emt 0:00:31]} g6 {[%emt 0:00:21]} 33. Qh7+ {[%emt 0:00:38]} Kf8 {[%emt 0:00:07]} 34. Qh6+ {[%emt 0:00:36]} Bg7 {[%emt 0:00:18]} 35. Qh4 {[%emt 0:00:10]} Qf5+ {[%emt 0:01:34]} 36. Ke2 {[%emt 0:00:08]} Qc5 {[%emt 0:01:03]} 37. Rh3 {[%emt 0:01:00]} Qc2+ {[%emt 0:00:24]} 38. Kf3 {[%emt 0:00:13]} Qd3 {[%emt 0:00:40]} 39. Qb4+ {[%emt 0:00:47]} Kg8 {[%emt 0:00:11]} 40. Qd2 {[%emt 0:00:00]} Qe4+ {[%emt 0:00:00]} 41. Kf2 {[%emt 0:01:04]} Rb8 {[%emt 0:11:45]} 42. Qe2 {[%emt 0:03:33]} Rb2 {[%emt 0:02:01]} 43. Bd2 {[%emt 0:00:05]} Qd4+ {[%emt 0:01:40]} 44. Kf3 {[%emt 0:00:38]} Rxd2 {[%emt 0:00:41]} 0-1